Cogmind - Beta 17.1 @@@ ROGUE MODE // 2026.09.18 @ 21:50:02 Player: stixxx Result: Destroyed by Y-45 Defender with Beam Rifle Performance ------------- Evolutions (0) 0 Regions Visited (4) 800 Robots Destroyed (4) 20 Value Destroyed (149) 149 Prototype IDs (23) 460 Alien Tech Used (0) 0 Bonus (302) 302 TOTAL SCORE: 1731 Bonus ------- Follower Combat Kills 33 Aligned with FarCom 300 Friendly Fire -31 Cogmind --------- Core Integrity 0/250 Matter 238/300 Energy 250/250 System Corruption 0% Temperature Cool (9) Movement Walking (90) Location -9/Mines Parts ------- > --- POWER (1) -------- Ion Engine > --- PROPULSION (2) --- Potential Leg Potential Leg > --- UTILITY (2) ------ Small Storage Unit Targeting Computer > --- WEAPON (2) ------- Light Assault Rifle Grenade Launcher > --- INVENTORY (8) ---- Light Ion Engine Nuclear Core Reinforced Deuterium Engine Aluminum Leg Aluminum Leg Experimental Sensor Array Skeleton Box Field Lobotomy Kit (5) Peak State ------------ > --- POWER ------------ Ion Engine > --- PROPULSION ------- Potential Leg Potential Leg > --- UTILITY ---------- Small Storage Unit Targeting Computer > --- WEAPON ----------- Field Lobotomy Kit > --- INVENTORY -------- Nuclear Core Reinforced Deuterium Engine Aluminum Leg Aluminum Leg Skeleton Box [Rating: 34] Favorites ----------- Power Ion Engine Engine Ion Engine Propulsion Potential Leg Leg Potential Leg Wheel Wheel Utility Small Storage Unit Storage Small Storage Unit Processor Targeting Computer Weapon Light Assault Rifle Energy Gun EM Pulse Gun Ballistic Gun Light Assault Rifle Launcher Grenade Launcher Special Weapon Field Lobotomy Kit Build | -11 -10 -10 -10 -9 ------- Run | Yrd Mat Min Exi Min Slots Evolved . | . . . . . Power . | . . . . . Propulsion . | . . . . . Utility . | . . . . . Weapon . | . . . . . Parts Attached 15 | 6 1 3 3 2 Power 2 | 1 . 1 . . Engine 2 | 1 . 1 . . Core . | . . . . . Reactor . | . . . . . Propulsion 6 | 2 . 2 2 . Treads . | . . . . . Leg 4 | . . 2 2 . Wheel 2 | 2 . . . . Hover . | . . . . . Flight . | . . . . . Utility 2 | 1 1 . . . Device . | . . . . . Storage 1 | 1 . . . . Processor 1 | . 1 . . . Hackware . | . . . . . Protection . | . . . . . Artifact . | . . . . . Weapon 5 | 2 . . 1 2 Energy Gun 1 | 1 . . . . Energy Cannon . | . . . . . Ballistic Gun 2 | 1 . . . 1 Ballistic Cannon . | . . . . . Launcher 1 | . . . . 1 Special Weapon 1 | . . . 1 . Impact Weapon . | . . . . . Slashing Weapon . | . . . . . Piercing Weapon . | . . . . . Special Melee Weapon . | . . . . . Unidentified Prototypes . | . . . . . Parts Lost 5 | . 5 . . . Power 1 | . 1 . . . Propulsion 2 | . 2 . . . Utility . | . . . . . Weapon 2 | . 2 . . . Highest Loss Streak 5 | . 5 . . . To Critical Strikes . | . . . . . Average Backups 4 | 1 3 1 2 7 Power 2 | . 1 . 1 2 Propulsion 1 | 1 2 1 . 2 Utility . | . . . . . Weapon . | . . . . . Tool/Special . | . . . . . Unused Backups 5 | . . . . 5 Power 3 | . . . . 3 Propulsion . | . . . . . Utility 1 | . . . . 1 Weapon . | . . . . . Tool/Special 1 | . . . . 1 Average Slot Usage (%) 80 | . 78 44 71 96 Engine 13 | . 9 4 13 14 Leg 25 | . . 11 28 28 Wheel 1 | . 23 . . . Storage 14 | . 14 14 14 14 Processor 13 | . 9 14 14 14 Ballistic Gun 5 | . 11 . . 13 Launcher 4 | . . . . 11 Peak Build Rating 34 | 6 7 5 34 28 Average Rating 15 | 4 5 3 8 27 On Entrance 7 | . 6 2 5 25 Avg Prop Armor Cover (%) . | . . . . . Naked Turns . | . . . . . Heaviest Build 18 | 11 11 10 18 14 Greatest Support 60 | 20 20 20 60 60 Greatest Overweight (x) 1 | . 1 1 . . Average Overweight (x) . | . . . . . Largest Inventory Capacity 8 | 8 8 8 8 8 Average Capacity 7 | 6 8 8 8 8 Most Carried 8 | 3 3 3 6 8 Average Carried 4 | 1 3 1 2 7 Final Capacity 8 | 8 8 8 8 8 Final Carried 8 | 3 3 . 6 8 Class Distribution -------------------- 100% | Mutant Dominant Class ---------------- Mutant | -10/Materials Mutant | -10/Mines Mutant | -10/Exiles Mutant | -9/Mines Resources | -11 -10 -10 -10 -9 ----------- Run | Yrd Mat Min Exi Min Matter Collected 365 | 260 . . . 105 Remotely . | . . . . . Salvage Created 127 | . 48 . . 79 Parts 5 | . 1 . . 4 Haulers Intercepted . | . . . . . Recyclers Shooed . | . . . . . Parts Field Recycled . | . . . . . Retrieved Matter . | . . . . . Parts Self-Destructed . | . . . . . Prevented . | . . . . . Parts Restored . | . . . . . Kills | -11 -10 -10 -10 -9 ------- Run | Yrd Mat Min Exi Min Combat Hostiles Destroyed 4 | . 1 . . 3 AOE 3 | . . . . 3 Classes Destroyed 1 | . 1 . . . Grunt 4 | . 1 . . 3 Best Kill Streak 3 | . 1 . . 3 Combat Bots Only 3 | . 1 . . 3 Max Kills in Single Turn 1 | . 1 . . 1 Gunslinging . | . . . . . Exploded 1 | . . . . 1 Melee . | . . . . . Uniques/NPCs Destroyed . | . . . . . Combat | -11 -10 -10 -10 -9 -------- Run | Yrd Mat Min Exi Min Hostile Shots Fired 75 | . 65 . . 10 Missed 23 | . 21 . . 2 Hits 52 | . 44 . . 8 Projectile 52 | . 44 . . 8 Critical Strikes 1 | . . . . 1 Damage Taken 684 | . 535 . . 149 Core 252 | . 201 . . 51 Absorbed by Shields . | . . . . . Core Remaining (%) 100 | 100 . . . . Volleys Fired 22 | . 16 . . 6 Largest 2 | . 2 . . 2 Hottest 60 | . 60 . . 50 Shots Fired 36 | . 24 . . 12 Gun 30 | . 24 . . 6 Cannon . | . . . . . Launcher 6 | . . . . 6 Special . | . . . . . Kinetic 22 | . 16 . . 6 Thermal . | . . . . . Explosive 6 | . . . . 6 Electromagnetic 8 | . 8 . . . Robot Hit Streak 9 | . 9 . . 9 Robot Miss Streak 3 | . 2 . . 3 Penetration Max . | . . . . . Secondary Targets . | . . . . . Shots Hit Robots 26 | . 18 . . 8 Core Hits 10 | . 3 . . 7 Critical Kills . | . . . . . Critical Parts Destroyed . | . . . . . Critical Strikes . | . . . . . Melee Attacks . | . . . . . Impact . | . . . . . Slashing . | . . . . . Piercing . | . . . . . Sneak Attacks . | . . . . . Combat Hostiles . | . . . . . Follow-up Attacks . | . . . . . Damage Inflicted 466 | . 178 . . 288 Guns 208 | . 178 . . 30 Cannons . | . . . . . Explosions 258 | . . . . 258 Melee . | . . . . . Ramming . | . . . . . Kinetic 147 | . 117 . . 30 Thermal . | . . . . . Explosive 258 | . . . . 258 Electromagnetic 61 | . 61 . . . Impact . | . . . . . Slashing . | . . . . . Piercing . | . . . . . Highest Corruption . | . . . . . Average Corruption . | . . . . . Corruption Purged . | . . . . . Corruption Blocked . | . . . . . Overload Shots . | . . . . . Overflow Damage 21 | . . . . 21 Projectiles . | . . . . . Explosions 21 | . . . . 21 Melee . | . . . . . Knockbacks . | . . . . . Impact . | . . . . . Kinetic . | . . . . . Secondary . | . . . . . Self-Inflicted Damage 16 | . . . . 16 Shots 2 | . . . . 2 Rammed . | . . . . . Targets Rammed . | . . . . . Kicked . | . . . . . Crushed . | . . . . . Highest Temperature 118 | . 118 . . 51 Average Temperature 42 | . 52 . . 22 Received Heat Transfer 378 | . 291 . . 87 Siege Activations . | . . . . . Martial Activations . | . . . . . Shielding Activations . | . . . . . Robots Disrupted . | . . . . . Combat Hostiles . | . . . . . Robots Corrupted 1 | . 1 . . . Combat Hostiles 1 | . 1 . . . Parts Fried 1 | . 1 . . . Impact Corruptions . | . . . . . Robots Melted . | . . . . . Combat Hostiles . | . . . . . Parts Melted 1 | . . . . 1 Heat Transferred . | . . . . . Parts Sabotaged . | . . . . . Parts Stolen . | . . . . . Parts Stripped . | . . . . . Power Chain Reactions . | . . . . . Alert | -11 -10 -10 -10 -9 ------- Run | Yrd Mat Min Exi Min Maximum Alert Level . | . . . . . Low Security (%) 100 | 100 100 100 . 100 Level 1 . | . . . . . Level 2 . | . . . . . Level 3 . | . . . . . Level 4 . | . . . . . Level 5 . | . . . . . High Security . | . . . . . Max Security . | . . . . . Peak Influence 95 | . 30 . . 95 Initial . | . . . . . Average 8 | . 4 . . 10 Influence Increases 170 | . 46 . . 124 Destroy 0b10 Robot/C 100 | . 20 . . 80 Destroy Leader 20 | . 10 . . 10 Allied During Kill 5 | . . . . 5 Successful Hack 16 | . 16 . . . Destroy Structure 29 | . . . . 29 Influence Decreases 78 | . 46 . . 32 Time Decay 58 | . 26 . . 32 Lost Part 20 | . 20 . . . Squads Dispatched 2 | . 2 . . . Investigation 1 | . 1 . . . Extermination . | . . . . . Reinforcement 1 | . 1 . . . Assault . | . . . . . Garrison . | . . . . . Intercept . | . . . . . Searches Triggered . | . . . . . Construction Impeded . | . . . . . Haulers Reinforced . | . . . . . Active Scanning Responses . | . . . . . Cargo Convoy Interrupts . | . . . . . Stealth | -11 -10 -10 -10 -9 --------- Run | Yrd Mat Min Exi Min Distress Signals . | . . . . . Communications Jammed . | . . . . . Distress Signals . | . . . . . Times Spotted 15 | . 8 . . 7 Peak Tracking Total 6 | . 6 . . 3 Tactical Retreats . | . . . . . Traps | -11 -10 -10 -10 -9 ------- Run | Yrd Mat Min Exi Min Traps Triggered . | . . . . . Indirectly . | . . . . . Trap Hack Attempts . | . . . . . Triggered . | . . . . . Disarmed . | . . . . . Reprogrammed . | . . . . . Reused . | . . . . . Traps Extracted . | . . . . . Installed . | . . . . . Triggered . | . . . . . Machines | -11 -10 -10 -10 -9 ---------- Run | Yrd Mat Min Exi Min Machines Disabled . | . . . . . Max in Single Turn . | . . . . . Machines Repaired . | . . . . . Machines Dismantled . | . . . . . Machines Sabotaged . | . . . . . Overloaded Fab Kills . | . . . . . Hacking | -11 -10 -10 -10 -9 --------- Run | Yrd Mat Min Exi Min Machines Accessed 7 | . 2 . 5 . Terminals 2 | . 2 . . . Fabricators . | . . . . . Repair Stations . | . . . . . Recycling Units . | . . . . . Scanalyzers . | . . . . . Garrison Access . | . . . . . Total Hacks 59 | . 9 . 50 . Successful 53 | . 3 . 50 . Failed 6 | . 6 . . . Catastrophic . | . . . . . Database Lockouts . | . . . . . Manual 10 | . 9 . 1 . Terminals 9 | . 9 . . . Fabricators . | . . . . . Repair Stations . | . . . . . Recycling Units . | . . . . . Scanalyzers . | . . . . . Garrison Access . | . . . . . Terminal Hacks 52 | . 2 . 50 . Record 49 | . . . 49 . Branch Access Points 1 | . 1 . . . Patrol Status 1 | . 1 . . . Proto ID Catalog 1 | . . . 1 . Fabricator Hacks . | . . . . . Repair Station Hacks . | . . . . . Recycling Unit Hacks . | . . . . . Scanalyzer . | . . . . . Garrison Access Hacks . | . . . . . Unauthorized Hacks 1 | . 1 . . . Terminals 1 | . 1 . . . Sabotage 1 | . 1 . . . Fabricators . | . . . . . Repair Stations . | . . . . . Recycling Units . | . . . . . Scanalyzers . | . . . . . Garrison Access . | . . . . . Data Cores Recovered . | . . . . . Used . | . . . . . Hacking Detections 2 | . 2 . . . Full Trace Events . | . . . . . Feedback Events . | . . . . . Feedback Blocked . | . . . . . Robot Schematics Acquired . | . . . . . Robots Built . | . . . . . Authchips . | . . . . . Time . | . . . . . Total Robot Build Rating . | . . . . . Part Schematics Acquired . | . . . . . Parts Built . | . . . . . Authchips . | . . . . . Time . | . . . . . Total Part Build Rating . | . . . . . Part Studies Acquired . | . . . . . Parts Repaired . | . . . . . Time . | . . . . . Parts Recycled . | . . . . . Recycled Matter . | . . . . . Retrieved Matter . | . . . . . Retrieved Components . | . . . . . Parts Scanalyzed . | . . . . . Part Schematics Acquired . | . . . . . Parts Damaged . | . . . . . Bothacking | -11 -10 -10 -10 -9 ------------ Run | Yrd Mat Min Exi Min Used RIF Installer . | . . . . . Robots Hacked . | . . . . . Non-combat . | . . . . . Combat . | . . . . . Robot Hacks Applied . | . . . . . Relay Couplers Released . | . . . . . Fabnet Peak Effective % . | . . . . . Robots Rewired . | . . . . . Allies Hacked . | . . . . . Hacks Repelled . | . . . . . Allies | -11 -10 -10 -10 -9 -------- Run | Yrd Mat Min Exi Min Total Allies 1 | . . . . 1 Largest Group 1 | . . . . 1 Highest-Rated Group 31 | . . . . 31 Highest-Rated Ally 31 | . . . . 31 Total Orders . | . . . . . Ally Attacks 13 | . . . . 13 Total Damage 128 | . . . . 128 Kills 1 | . . . . 1 Allies Corrupted . | . . . . . Allies Melted . | . . . . . Intel | -11 -10 -10 -10 -9 ------- Run | Yrd Mat Min Exi Min Active Infowar (turns) . | . . . . . Robot Analysis Total . | . . . . . Derelict Logs Recovered 1 | . . . . 1 Drone Launches . | . . . . . Drone Recoveries . | . . . . . Exploration | -11 -10 -10 -10 -9 ------------- Run | Yrd Mat Min Exi Min Turns Passed 1810 | 58 129 44 920 659 Spaces Moved 1486 | 58 101 31 793 503 Core 38 | 3 21 14 . . Treads . | . . . . . Legs 1313 | . . 17 793 503 Wheels 135 | 55 80 . . . Hover . | . . . . . Flight . | . . . . . Fastest Speed 50 | 50 80 100 90 90 Average Speed 101 | 78 84 110 113 90 Slowest Speed 120 | 80 100 120 120 90 Overloaded Moves . | . . . . . Propulsion Burnouts . | . . . . . Robots Hopped . | . . . . . Potential Cave-ins . | . . . . . Cave-ins Triggered . | . . . . . Exploration Rate (%) 40 | 4 25 13 92 68 Regions Visited 4 Branch Regions 3 Pre-discovered Areas 1 | . . . 1 . Known Exits Taken 1 | . 1 . . . Unknown Exits Taken 3 | 1 . 1 1 . Scrap Searched 1 | . . . . 1 Spaces Dug . | . . . . . Terrain Destroyed 41 | . . . . 41 Melee . | . . . . . Projectile . | . . . . . AOE 41 | . . . . 41 Terrain Rammed . | . . . . . Walls Destroyed . | . . . . . Machines Disabled . | . . . . . Actions | -11 -10 -10 -10 -9 --------- Run | Yrd Mat Min Exi Min Total 1744 | 67 123 40 817 697 Wait 203 | 1 6 7 5 184 Move 1482 | 57 100 30 792 503 Hop . | . . . . . Pick Up 11 | 3 . . 6 2 Fast Attach 10 | 6 1 . 1 2 Attach 7 | . . 3 4 . Detach 5 | . . . 5 . Swap . | . . . . . Drop 1 | . . . 1 . Fire 22 | . 16 . . 6 Melee . | . . . . . Ram . | . . . . . Kick . | . . . . . Crush . | . . . . . Escape Stasis . | . . . . . Rewire 3 | . . . 3 . Trap . | . . . . . Miscellaneous . | . . . . . Route ------- -11/Scrapyard -10/Materials -10/Mines -10/Exiles -9/Mines History --------- Turn | Location | Event 8 | -11/Scrapyard | Discovered new exit (range 16) 59 | -11/Scrapyard | Entered Materials 84 | -10/Materials | Identified exit to Mines 159 | -10/Materials | Core integrity fell below 50% 167 | -10/Materials | Met 8R-AWN 172 | -10/Materials | Core integrity fell below 20% 188 | -10/Materials | Entered Mines 189 | -10/Mines | Followed 8R-AWN into the Mines 196 | -10/Mines | Lost 5 parts (1p2n2w) 227 | -10/Mines | Discovered new exit (range 5) 232 | -10/Mines | Entered Exiles 263 | -10/Exiles | Welcomed by 8R-AWN 335 | -10/Exiles | Met EX-HEX 337 | -10/Exiles | Build established: Mutant 370 | -10/Exiles | Met EX-BIN 395 | -10/Exiles | Aligned with FarCom system 396 | -10/Exiles | Given EX-Vault access code 524 | -10/Exiles | Met EX-DEC 653 | -10/Exiles | Learned location of Zion (-7) 713 | -10/Exiles | Visited The Gauntlet 934 | -10/Exiles | Opened EX-Vault 971 | -10/Exiles | Found Field Lobotomy Kit 977 | -10/Exiles | Found Potential Leg 980 | -10/Exiles | Found Potential Leg 984 | -10/Exiles | Found Skeleton Box 1021 | -10/Exiles | Warned to stay clear of 0b10 Research branches 1143 | -10/Exiles | Discovered new exit (range 11) 1152 | -10/Exiles | Stole three prototypes: Potential Leg, Skeleton Box, Field Lobotomy Kit 1152 | -10/Exiles | Entered Mines 1177 | -9/Mines | Met a Derelict bent on vengeance 1240 | -9/Mines | Found a damaged Exp. Sensor Array with a note attached 1242 | -9/Mines | Found Prototype Device 1253 | -9/Mines | Learned Materials security intel 1267 | -9/Mines | YI-UF0 nonchalantly dropped a Grenade Launcher on the ground 1329 | -9/Mines | Escorted by a lone wolf Derelict 1811 | -9/Mines | Destroyed by Y-45 Defender with Beam Rifle Last Messages --------------- The unstable cave ceiling collapses. Acquired 19 matter. Acquired 5 matter. U-05 Engineer builds a Wall. R-06 Scavenger collects Aluminum Leg. U-05 Engineer lays Concrete. U-05 Engineer builds a Wall. K-01 Serf collects debris. U-05 Engineer builds a Wall. K-01 Serf collects debris. U-05 Engineer builds a Wall. K-01 Serf collects debris. U-05 Engineer builds a Wall. K-01 Serf collects debris. U-05 Engineer lays Concrete. U-05 Engineer builds a Wall. Critical hit (Burn: +37). K-01 Serf collects debris. U-05 Engineer builds a Wall. K-01 Serf collects debris. Map ----- +----------------------------------------------------+ | | | | | | | | | | | | | | | | | | | | | | | | | | | | | ??????????????????????????????????????????????? | | ??????????????????????????######??????????????? | | ?????????????????????????##"!/"##?????????????? | | ?????????????????????????#""]!""#?????????????? | | ?????????????????????????# ! #####?????????? | | ??????????????????????????# * ### ##????????? | | ?????????????????????????###/Y### ##???????? | | ?????????????????????????# g #???????? | | ???????????????????####### #???????? | | ??????#####???????## #???????? | | ?###### ##??????# ##???????? | | ## ######?# @ ##????????? | | ## ### ## #?????????? | | ### #### #?????????? | | #?## ## #?????????? | | # ##??## ## ###?????????? | | ## ###### # #???????????? | | ?## ### #???????????? | | ??# k# ### #???????????? | | ??## ### ########## # # ### #########???? | | ???## #?# ####???????# #u ## #???? | | ????# #?# #??????????# # # #???? | | ????# #?# #??????????## # #### #???? | | ????# #?# #??????????## # ### ##??####???? | | ????# ? ???????? #r# #??????????? | | ????###?###???????#### # # ##??????????? | | ?????????????????????# ## # ##???????????? | | ?????????????????????# ##????????????? | | ?????????????????????# # ##?????????????? | | ?????????????????????# #########??????????????? | | ?????????????????????# #??????????????????????? | | ?????#####????####???? #??????????????????????? | | ??#### ##?### ##### #??????????????????????? | | ?## ### ## #?????####?????????????? | | ?# ## #????## ##??####??????? | | ?# ####### ### #??????? | +----------------------------------------------------+ Best States ------------- Heat Dissipation 25 Energy Generation 10 Energy Capacity 250 Matter Stores 300 Matter Capacity 300 Sight Range 16 Terrain Scan Density 10 Evasion (%) 57 Targeting Accuracy 5 Item Schematics ----------------- None Robot Schematics ------------------ None Fabricated ------------ Nothing Repaired ---------- Nothing Studied --------- None Alien Tech Used ----------------- None Achievements -------------- Follow The Leader Sixth Sense Challenges ------------ None Game ------ Seed CountertargetingHardcellPod Manual? 0 Play Time 00:26:19 Cumulative 14.7 hours Start 2026.09.18 @ 21:13:00 End 2026.09.18 @ 21:50:02 Sessions 3 Manual Loads 0 Difficulty Rogue Special Mode None Game No. 28 Rogue 28 Adventurer 0 Explorer 0 Win Type - Total 0 Types 0/0/0/0/0/0/0/0/0/0 Lore% 16 Gallery% 13 Achievement% 15 Wizard Run 0 Options --------- Layout 1 ASCII 0 Keyboard 1 Movement Numpad Keybinds 0 Fullscreen 1 Font 24/Smallcaps Map View 50x35 Zoom Use 0% Tactical HUD 0 Map Filters NONE Filters NONE Steam 1 RUN: c71a7751-f434-4ba6-a32f-568101dbdecc